bitfinex/quotes_BTCUSD_20260308
["timestamp","ask_amount","ask_price","bid_price","bid_amount"]
[1772933509803,0.00148,67142.0,67131.0,0.07448123]
[1772933510008,0.07594976,67142.0,67130.0,0.0212374]
[1772933510155,0.09606736,67142.0,67129.0,0.12481886]
[1772933511298,0.01989759,67141.0,67128.0,0.07448235]
[1772933512079,0.01989759,67141.0,67140.0,0.00015]
[1772933512313,0.01989759,67141.0,67128.0,0.07448235]
[1772933512925,0.07616977,67142.0,67129.0,0.07157382]
[1772933513129,0.01989759,67141.0,67127.0,0.00011992]
[1772933515075,0.07447125,67140.0,67127.0,0.00011992]
[1772933515239,0.01989759,67139.0,67127.0,0.00011992]
[1772933517427,0.01989759,67137.0,67127.0,0.00011992]
[1772933517635,0.01989759,67135.0,67127.0,0.00011992]
[1772933518489,0.01989759,67134.0,67120.0,0.07449307]
[1772933518788,0.02001795,67134.0,67120.0,0.07449307]
[1772933519335,0.07447901,67133.0,67127.0,0.0002]
[1772933525659,0.05361859,67133.0,67127.0,0.0002]
[1772933527211,0.0205616,67132.0,67127.0,0.0002]
[1772933527464,0.0205616,67132.0,67120.0,0.074693]
[1772933527989,0.07448123,67131.0,67127.0,0.0002]
[1772933528391,0.07448123,67131.0,67120.0,0.0002]
[1772933528596,0.07448123,67131.0,67123.0,0.00015]
[1772933528798,0.07448123,67131.0,67114.0,0.07449922]
[1772933528799,0.05320225,67127.0,67103.0,0.07471141]
[1772933529003,0.05320225,67118.0,67103.0,0.0002]
[1772933529284,0.02050887,67115.0,67103.0,0.0002]
[1772933530137,0.02050887,67113.0,67103.0,0.0002]
[1772933532189,0.09536375,67112.0,67103.0,0.0002]
[1772933532332,0.00148,67111.0,67103.0,0.0002]
[1772933534254,0.07598383,67111.0,67103.0,0.0002]
[1772933534677,0.02086042,67110.0,67103.0,0.0002]
[1772933537263,0.09536536,67110.0,67103.0,0.0002]
[1772933537792,0.09536536,67110.0,67090.0,0.07452599]
[1772933537793,0.02050887,67108.0,67090.0,0.07452599]
[1772933537995,0.09536509,67110.0,67091.0,0.07626362]
[1772933538301,0.09536509,67110.0,67096.0,0.05257722]
[1772933538506,0.09536509,67110.0,67097.0,0.00173847]
[1772933538720,0.09536509,67110.0,67096.0,0.07453381]
[1772933539126,0.09536509,67110.0,67097.0,0.07451897]
[1772933539421,0.11587396,67110.0,67097.0,0.07451897]
[1772933540322,0.02050887,67109.0,67096.0,0.1285768]
[1772933540518,0.02050887,67109.0,67097.0,0.0002]
[1772933540740,0.02050887,67109.0,67096.0,0.07451958]
[1772933541123,0.07450676,67108.0,67095.0,0.07452016]
[1772933541418,0.02050887,67107.0,67095.0,0.07472016]
[1772933541622,0.00148,67106.0,67095.0,0.0002]
[1772933541858,0.02050887,67105.0,67095.0,0.0002]
[1772933543246,0.0745112,67104.0,67095.0,0.0002]
[1772933543642,0.09537162,67104.0,67095.0,0.0002]
[1772933544394,0.09537162,67104.0,67092.0,0.07452395]
[1772933544577,0.02050887,67103.0,67094.0,0.0002]
[1772933545444,0.02050887,67103.0,67091.0,0.07452492]
[1772933545445,0.02050887,67101.0,67090.0,0.00012001]
[1772933546478,0.02198887,67101.0,67090.0,0.00012001]
[1772933546997,0.02198887,67101.0,67083.0,0.07453347]
[1772933546998,0.02050887,67099.0,67083.0,0.07453347]
[1772933547197,0.02062914,67099.0,67083.0,0.07453347]
[1772933547408,0.02062914,67099.0,67083.0,0.12711069]
[1772933547409,0.02050887,67097.0,67083.0,0.12711069]
[1772933547968,0.00148,67096.0,67083.0,0.12711069]
[1772933549587,0.09538186,67095.0,67083.0,0.12711069]
[1772933549907,0.09538186,67095.0,67090.0,0.0002]
[1772933551527,0.0745189,67098.0,67090.0,0.0002]
[1772933551699,0.0759989,67098.0,67090.0,0.0002]
[1772933551898,0.07451464,67101.0,67090.0,0.0002]
[1772933552068,0.00148,67104.0,67090.0,0.00032027]
[1772933552267,0.07451077,67105.0,67090.0,0.00032027]
[1772933552478,0.00148,67104.0,67093.0,0.05186032]
[1772933552683,0.05781434,67109.0,67095.0,0.05186032]
[1772933552885,0.05781434,67109.0,67098.0,0.02047659]
[1772933553115,0.05781434,67109.0,67099.0,0.02047659]
[1772933553686,0.05781434,67109.0,67100.0,0.07451564]
[1772933554943,0.05781434,67109.0,67100.0,0.00148]
[1772933555121,0.05781434,67109.0,67101.0,0.02047659]
[1772933555520,0.05781434,67109.0,67100.0,0.00148]
[1772933556228,0.02050887,67108.0,67097.0,0.00148]
[1772933556630,0.05291454,67108.0,67093.0,0.07600239]
[1772933556827,0.02050887,67107.0,67093.0,0.07600239]
[1772933557034,0.07598898,67106.0,67093.0,0.07600239]
[1772933557237,0.00148,67106.0,67093.0,0.07600239]
[1772933557437,0.07450605,67109.0,67096.0,0.05186032]
[1772933557706,0.07450605,67109.0,67099.0,0.02047659]
[1772933557852,0.07450605,67109.0,67100.0,0.02047659]
[1772933558383,0.07620499,67110.0,67101.0,0.05186032]
[1772933558584,0.0745031,67112.0,67104.0,0.0210603]
[1772933558585,0.00148,67112.0,67104.0,0.0210603]
[1772933559216,0.00022001,67110.0,67104.0,0.09557124]
[1772933559366,0.00022001,67110.0,67104.0,0.07451094]
[1772933559564,0.00022001,67110.0,67105.0,0.0210603]
[1772933559767,0.07471789,67117.0,67107.0,0.0210603]
[1772933559768,0.00022001,67117.0,67107.0,0.0210603]
[1772933559969,0.00022001,67117.0,67109.0,0.0210603]
[1772933560378,0.00170001,67117.0,67109.0,0.0210603]
[1772933560599,0.07464059,67123.0,67109.0,0.0210603]
[1772933560797,0.00148,67120.0,67109.0,0.0210603]
[1772933561316,0.07449455,67119.0,67105.0,0.00148]
[1772933561474,0.05291454,67116.0,67105.0,0.00148]
[1772933561676,0.0209244,67115.0,67098.0,0.07451746]
[1772933561876,0.05291454,67111.0,67096.0,0.07471974]
[1772933562103,0.0209244,67110.0,67096.0,0.0002]
[1772933562304,0.0209244,67106.0,67090.0,0.00032027]
[1772933562481,0.05291454,67103.0,67090.0,0.00032027]
[1772933562681,0.0209244,67100.0,67084.0,0.07453337]
[1772933562901,0.0209244,67097.0,67084.0,0.07453337]
[1772933563324,0.0209244,67095.0,67082.0,0.07453501]
[1772933563471,0.05291454,67094.0,67081.0,0.07453675]
[1772933563671,0.0224044,67093.0,67081.0,0.07453675]
[1772933564120,0.0224044,67093.0,67079.0,0.00575]
[1772933564324,0.0209244,67092.0,67079.0,0.00575]
[1772933564521,0.0209244,67091.0,67079.0,0.00575]
[1772933565382,0.0209244,67089.0,67079.0,0.08028798]
[1772933566106,0.07452675,67090.0,67079.0,0.08028798]
[1772933566309,0.07452356,67093.0,67080.0,0.05359493]
[1772933566536,0.00148,67092.0,67083.0,0.0210603]
[1772933566736,0.00148,67093.0,67085.0,0.0210603]
[1772933566936,0.00148,67093.0,67087.0,0.0210603]
[1772933567139,0.00012036,67100.0,67088.0,0.05186032]
[1772933567344,0.07451404,67102.0,67092.0,0.05186032]
[1772933567671,0.00148,67101.0,67093.0,0.0210603]
[1772933569468,0.07599454,67101.0,67093.0,0.09558309]
[1772933569786,0.07599454,67101.0,67093.0,0.0210603]
[1772933569992,0.00148,67101.0,67093.0,0.09558283]
[1772933570210,0.00148,67101.0,67094.0,0.0210603]
[1772933570554,0.00148,67102.0,67094.0,0.0210603]
[1772933570785,0.00148,67102.0,67093.0,0.07452253]
[1772933571161,0.00148,67102.0,67094.0,0.0210603]
[1772933571362,0.00148,67102.0,67096.0,0.0210603]
[1772933571588,0.00148,67102.0,67098.0,0.0210603]
[1772933571991,0.00148,67103.0,67094.0,0.07452219]
[1772933572241,0.00148,67103.0,67094.0,0.09558249]
[1772933573914,0.07451342,67102.0,67092.0,0.07464487]
[1772933574118,0.07451342,67102.0,67094.0,0.0002]
[1772933575751,0.07599342,67103.0,67094.0,0.0002]
[1772933577612,0.00148,67102.0,67094.0,0.0002]
[1772933578187,0.07451453,67101.0,67094.0,0.0002]
[1772933579220,0.07451453,67101.0,67095.0,0.0210603]
[1772933579729,0.07599351,67102.0,67095.0,0.0210603]
[1772933580090,0.07465989,67106.0,67095.0,0.0210603]
[1772933580091,0.00015,67106.0,67095.0,0.0210603]
[1772933580306,0.00148,67105.0,67095.0,0.09558116]
[1772933580715,0.00148,67104.0,67095.0,0.09558116]
[1772933580964,0.00148,67104.0,67096.0,0.0210603]
[1772933581337,0.00148,67103.0,67096.0,0.0210603]
[1772933581733,0.00015,67106.0,67096.0,0.0210603]
[1772933581921,0.00148,67103.0,67096.0,0.0210603]
[1772933582319,0.00148,67103.0,67094.0,0.07472141]
[1772933582754,0.07620609,67109.0,67095.0,0.02290751]
[1772933582925,0.02213429,67108.0,67095.0,0.02290751]
[1772933583121,0.02213429,67107.0,67095.0,0.02290751]
[1772933583309,0.02213429,67105.0,67094.0,0.0002]
[1772933584108,0.02213429,67105.0,67093.0,0.0002]
[1772933584336,0.0745112,67104.0,67093.0,0.0002]
[1772933584588,0.02213429,67100.0,67092.0,0.00012036]
[1772933584731,0.02213429,67098.0,67089.0,0.07452572]
[1772933584930,0.00148,67097.0,67089.0,0.07452572]
[1772933585925,0.00148,67097.0,67090.0,0.02290751]
[1772933586345,0.00148,67097.0,67091.0,0.07452564]
[1772933588587,0.00148,67097.0,67090.0,0.02290751]
[1772933589714,0.00148,67097.0,67087.0,0.07472897]
[1772933590045,0.00012036,67098.0,67087.0,0.07472897]
[1772933590177,0.00012036,67098.0,67080.0,0.07453758]
[1772933590178,0.07451872,67098.0,67084.0,0.07453321]
[1772933590526,0.0209668,67095.0,67084.0,0.07453321]
[1772933590711,0.07467132,67095.0,67084.0,0.07465357]
[1772933590921,0.0209668,67095.0,67084.0,0.07465357]
[1772933591117,0.1297021,67099.0,67085.0,0.02160694]
[1772933591317,0.1297021,67099.0,67091.0,0.0002]
[1772933591700,0.1506689,67099.0,67091.0,0.0002]
[1772933595120,0.04082253,67106.0,67092.0,0.05195146]
[1772933595395,0.00170001,67109.0,67094.0,0.02160694]
[1772933595713,0.00148,67108.0,67094.0,0.02160694]
[1772933596596,0.000537,67108.0,67094.0,0.02160694]
[1772933597222,0.000537,67108.0,67095.0,0.0745212]
[1772933597421,0.000537,67108.0,67096.0,0.02160694]
[1772933599418,0.05370452,67119.0,67098.0,0.05195146]
[1772933599599,0.00148,67114.0,67100.0,0.02160694]
[1772933600943,0.00022001,67108.0,67100.0,0.02160694]
[1772933601391,0.00022001,67108.0,67101.0,0.07451453]
[1772933601617,0.00022001,67108.0,67102.0,0.02160694]
[1772933602405,0.00148,67114.0,67102.0,0.02160694]
[1772933603729,0.00148,67114.0,67104.0,0.02160694]
[1772933604117,0.00022001,67120.0,67106.0,0.02160694]
[1772933604465,0.00170001,67120.0,67107.0,0.02160694]
[1772933604966,0.00022001,67120.0,67107.0,0.02160694]
[1772933605262,0.00033367,67120.0,67107.0,0.02160694]
[1772933605948,0.00033367,67120.0,67108.0,0.07450676]
[1772933606130,0.00033367,67120.0,67109.0,0.02160694]
[1772933606335,0.00033367,67120.0,67109.0,0.02308694]
[1772933606538,0.00170001,67122.0,67109.0,0.0750384]
[1772933606746,0.00170001,67122.0,67110.0,0.02160694]
[1772933608024,0.00170001,67122.0,67111.0,0.07450343]
[1772933608187,0.00170001,67122.0,67112.0,0.02160694]
[1772933609531,0.00037001,67123.0,67112.0,0.02160694]
[1772933610329,0.00022001,67122.0,67114.0,0.02160694]
[1772933612604,0.00022001,67122.0,67115.0,0.09610593]
[1772933613190,0.0006779,67125.0,67116.0,0.02160694]
[1772933613557,0.0006779,67125.0,67110.0,0.07450377]
[1772933613728,0.0209668,67118.0,67102.0,0.07599342]
[1772933613926,0.0209668,67114.0,67102.0,0.07451342]
[1772933614265,0.04963422,67113.0,67102.0,0.07451342]
[1772933614582,0.0209668,67111.0,67093.0,0.02160694]
[1772933614776,0.04963422,67108.0,67092.0,0.07472342]
[1772933614982,0.0209668,67105.0,67092.0,0.07472342]
[1772933615219,0.04963422,67102.0,67092.0,0.07472342]
[1772933617286,0.04963422,67102.0,67092.0,0.0002]
[1772933617485,0.02877888,67102.0,67092.0,0.0002]
[1772933617929,0.0209668,67103.0,67096.0,0.0002]
[1772933622567,0.04963422,67102.0,67096.0,0.0002]
[1772933622717,0.07340914,67101.0,67092.0,0.0002]
[1772933622916,0.04963422,67101.0,67092.0,0.0002]
[1772933623977,0.07340914,67105.0,67092.0,0.0002]
[1772933626722,0.07325914,67105.0,67092.0,0.0002]
[1772933627245,0.14776952,67105.0,67092.0,0.0002]
[1772933627398,0.14776952,67105.0,67092.0,0.00168]
[1772933627399,0.14776983,67105.0,67092.0,0.00168]
[1772933627602,0.04963422,67104.0,67092.0,0.00168]
[1772933628004,0.04963422,67104.0,67092.0,0.0002]
[1772933628215,0.04963422,67104.0,67092.0,0.00168]
[1772933629246,0.04963422,67104.0,67093.0,0.07452342]
[1772933630654,0.04985722,67104.0,67093.0,0.07452342]
[1772933631419,0.02898925,67104.0,67093.0,0.07452342]
[1772933632149,0.000223,67104.0,67093.0,0.07452342]
[1772933632471,0.00148,67107.0,67093.0,0.07452342]
[1772933632472,0.00148,67107.0,67095.0,0.02159185]
[1772933633043,0.0001381,67110.0,67095.0,0.02159185]
[1772933633271,0.00148,67109.0,67096.0,0.02159185]
[1772933633468,0.00148,67109.0,67097.0,0.07451897]
[1772933634324,0.00148,67109.0,67098.0,0.02159185]
[1772933635801,0.00148,67109.0,67099.0,0.07451675]
[1772933637838,0.0001381,67110.0,67099.0,0.07451675]
[1772933638038,0.00022001,67113.0,67101.0,0.02159185]
[1772933638236,0.00022001,67113.0,67102.0,0.02159185]
[1772933639075,0.0002517,67118.0,67106.0,0.02159185]
[1772933639205,0.0002517,67118.0,67107.0,0.02159185]
[1772933639837,0.0002517,67118.0,67108.0,0.07450676]
[1772933640030,0.0002517,67118.0,67108.0,0.09609861]
[1772933641399,0.0002517,67118.0,67106.0,0.07598676]
[1772933641400,0.07474757,67118.0,67095.0,0.0002]
[1772933641535,0.00022001,67109.0,67095.0,0.0002]
[1772933641732,0.00148,67108.0,67095.0,0.07472024]
[1772933641933,0.00148,67108.0,67095.0,0.0002]
[1772933641934,0.06987468,67105.0,67095.0,0.0002]
[1772933643132,0.00148,67108.0,67095.0,0.0002]
[1772933643338,0.07495184,67108.0,67095.0,0.0002]
[1772933643892,0.14945925,67108.0,67095.0,0.0747212]
[1772933645347,0.02173611,67107.0,67095.0,0.0747212]
[1772933645658,0.07347184,67105.0,67095.0,0.0747212]
[1772933646598,0.00148,67108.0,67095.0,0.0747212]
[1772933646774,0.07347184,67107.0,67095.0,0.0747212]
[1772933648846,0.07450898,67106.0,67095.0,0.0747212]
[1772933649150,0.14798027,67107.0,67095.0,0.0747212]
[1772933649870,0.14798016,67107.0,67095.0,0.0747212]
[1772933650054,0.07347184,67107.0,67095.0,0.0747212]
[1772933650353,0.07369185,67107.0,67095.0,0.0747212]
[1772933650913,0.14820004,67107.0,67095.0,0.0747212]
[1772933651118,0.00022001,67107.0,67095.0,0.0747212]
[1772933651320,0.00022001,67107.0,67096.0,0.02148611]
[1772933651321,0.00170001,67107.0,67096.0,0.02148611]
[1772933651719,0.00022001,67107.0,67096.0,0.02148611]
[1772933651948,0.07620805,67107.0,67096.0,0.02148611]
[1772933652447,0.14904206,67107.0,67095.0,0.0002]
[1772933652761,0.02257828,67105.0,67095.0,0.0002]
[1772933658918,0.05173573,67106.0,67095.0,0.0002]
[1772933659118,0.00022001,67107.0,67097.0,0.02148611]
[1772933659826,0.00022001,67107.0,67098.0,0.07451786]
[1772933663647,0.00022001,67107.0,67098.0,0.09600397]
[1772933663845,0.00022001,67107.0,67099.0,0.02148611]
[1772933664194,0.00022001,67107.0,67100.0,0.07451564]
[1772933664416,0.00022001,67107.0,67101.0,0.02148611]
[1772933664830,1e-08,67109.0,67101.0,0.02148611]
[1772933665049,1e-08,67109.0,67103.0,0.02148611]
[1772933666677,1e-08,67109.0,67104.0,0.0745112]
[1772933666878,1e-08,67109.0,67105.0,0.02148611]
[1772933668680,1e-08,67109.0,67106.0,0.07450898]
[1772933668839,1e-08,67109.0,67107.0,0.02148611]
[1772933669485,1e-08,67109.0,67106.0,0.07450898]
[1772933670749,0.05173573,67107.0,67089.0,0.00035]
[1772933670941,1e-08,67109.0,67091.0,0.0748632]
[1772933670942,0.05173573,67103.0,67091.0,0.0748632]
[1772933671140,0.02257828,67100.0,67091.0,0.0748632]
[1772933671321,0.00148,67101.0,67091.0,0.0748632]
[1772933671924,0.00148,67101.0,67091.0,0.0003381]
[1772933672163,0.00148,67101.0,67091.0,0.07486282]
[1772933673106,0.07599498,67101.0,67091.0,0.07486282]
[1772933673520,0.05507969,67101.0,67091.0,0.07486282]
[1772933673739,0.05655969,67101.0,67091.0,0.07486282]
[1772933673944,0.07913797,67101.0,67091.0,0.07486282]
[1772933675986,0.00148,67101.0,67092.0,0.02148611]
[1772933676366,0.07599477,67101.0,67091.0,0.07486282]
[1772933678541,0.07451345,67102.0,67091.0,0.07486282]
[1772933681521,0.09857127,67103.0,67091.0,0.07486282]
[1772933681821,0.07599299,67103.0,67091.0,0.09784987]
[1772933682846,0.07599299,67103.0,67089.0,0.07487779]
[1772933683194,0.07599299,67103.0,67084.0,0.07487124]
[1772933683195,0.04978057,67102.0,67084.0,0.07487124]
[1772933683405,0.07599299,67103.0,67084.0,0.07487124]
[1772933683406,0.02360647,67099.0,67084.0,0.07487124]
[1772933683609,0.04978057,67096.0,67084.0,0.07487124]
[1772933683780,0.02360647,67094.0,67084.0,0.07487124]
[1772933683983,0.05126057,67095.0,67084.0,0.07487124]
[1772933683984,0.02508647,67093.0,67084.0,0.07487124]
[1772933684282,0.02508647,67093.0,67084.0,0.07507524]
[1772933684791,0.02517012,67093.0,67084.0,0.07507524]
[1772933684983,0.02517012,67093.0,67091.0,0.0002]
[1772933686207,0.02517012,67093.0,67091.0,0.0004005]
[1772933687251,0.00148,67092.0,67091.0,0.0004005]
[1772933689716,0.00148,67092.0,67084.0,0.0002]
[1772933689717,0.07600453,67092.0,67084.0,0.0002]
[1772933689876,0.07600453,67092.0,67084.0,0.07473241]
[1772933690466,0.07600453,67092.0,67084.0,0.0002]
[1772933692102,0.07600453,67092.0,67087.0,0.0002]
[1772933692599,0.07622454,67092.0,67087.0,0.0002]
[1772933697439,0.09980222,67092.0,67087.0,0.0002]
[1772933698260,0.07622454,67092.0,67087.0,0.0002]
[1772933699776,0.09979698,67092.0,67084.0,0.0002]
[1772933701286,0.07622454,67092.0,67084.0,0.0002]
[1772933701781,0.07622454,67092.0,67087.0,0.0002]
[1772933702399,0.00148,67091.0,67087.0,0.0002]
[1772933702781,0.07474454,67092.0,67087.0,0.0002]
[1772933702955,0.00148,67091.0,67087.0,0.0002]
[1772933703801,0.00022001,67092.0,67087.0,0.0002]
[1772933703979,0.00148,67091.0,67087.0,0.0002]
[1772933705260,0.00022001,67092.0,67087.0,0.0002]
[1772933705461,0.00148,67091.0,67087.0,0.0002]
[1772933706816,0.00022001,67092.0,67087.0,0.0002]
[1772933707117,0.00148,67091.0,67087.0,0.0002]
[1772933707277,0.07474522,67092.0,67087.0,0.0002]
[1772933707503,0.00148,67091.0,67087.0,0.0002]
[1772933707913,0.07600579,67091.0,67087.0,0.0002]
[1772933708266,0.00148,67091.0,67088.0,0.02334433]
[1772933708890,0.00022001,67092.0,67088.0,0.02334433]
[1772933709095,0.07451814,67098.0,67088.0,0.02334433]
[1772933709096,0.00148,67095.0,67088.0,0.02334433]
[1772933709243,0.12121363,67102.0,67088.0,0.02346469]
[1772933709450,0.00049,67097.0,67088.0,0.02346469]
[1772933709976,0.00049,67097.0,67089.0,0.07452786]
[1772933710375,0.00022001,67092.0,67089.0,0.07452786]
[1772933710547,0.07363695,67099.0,67090.0,0.02334433]
[1772933710875,0.00148,67097.0,67090.0,0.02334433]
[1772933711679,0.00148,67097.0,67089.0,0.07452786]
[1772933711883,0.00104,67097.0,67089.0,0.07452786]
[1772933712081,0.00104,67097.0,67088.0,0.00012036]
[1772933712951,0.00036,67097.0,67088.0,0.00012036]
[1772933714079,0.00148,67097.0,67088.0,0.00012036]
[1772933715217,0.00083,67097.0,67088.0,0.00012036]
[1772933716263,0.00058,67097.0,67088.0,0.00012036]
[1772933716867,0.07531935,67097.0,67088.0,0.00012036]
[1772933717318,0.09846017,67097.0,67088.0,0.00012036]
[1772933718019,0.09833017,67097.0,67088.0,0.00012036]
[1772933718926,0.09823017,67097.0,67088.0,0.00012036]
[1772933719624,0.02371083,67097.0,67088.0,0.00012036]
[1772933719821,0.02365083,67097.0,67088.0,0.00012036]
[1772933720021,0.09817048,67097.0,67088.0,0.00012036]
[1772933721830,0.02314082,67094.0,67085.0,0.0745323]
[1772933721993,0.02314082,67093.0,67085.0,0.07461595]
[1772933722389,0.09817048,67097.0,67085.0,0.07461595]
[1772933722831,0.09817048,67097.0,67085.0,8.365e-05]
[1772933723202,0.07502966,67097.0,67085.0,8.365e-05]
[1772933723418,0.07490966,67097.0,67086.0,0.02334433]
[1772933725059,0.07490966,67097.0,67087.0,0.07453008]
[1772933725060,0.00148,67096.0,67087.0,0.07453008]
[1772933726458,0.00148,67095.0,67086.0,0.09807537]
[1772933726659,0.00148,67095.0,67086.0,0.07473104]
[1772933727161,0.07452231,67094.0,67086.0,0.0002]
[1772933727373,0.02314082,67093.0,67085.0,8.365e-05]
[1772933727928,0.02270082,67093.0,67085.0,8.365e-05]
[1772933729297,0.07452453,67092.0,67085.0,8.365e-05]
[1772933730124,0.07452453,67092.0,67080.0,0.0002]
[1772933730125,0.02314082,67091.0,67080.0,0.0002]
[1772933730299,0.02318268,67091.0,67080.0,0.0002]
[1772933731400,0.07452675,67090.0,67080.0,0.0002]
[1772933731636,0.00148,67089.0,67080.0,0.0002]
[1772933731836,0.00143,67089.0,67080.0,0.0002]
[1772933733418,0.07452897,67088.0,67080.0,0.0002]
[1772933733612,0.07595897,67089.0,67080.0,0.0002]
[1772933733613,0.07604809,67091.0,67080.0,0.07473786]
[1772933733821,0.07456809,67091.0,67082.0,0.02334433]
[1772933734021,0.00148,67090.0,67082.0,0.02334433]
[1772933735043,0.00143,67090.0,67082.0,0.02334433]
[1772933737069,0.07452786,67089.0,67083.0,0.07453453]
[1772933737248,0.00138,67090.0,67084.0,0.02334433]
[1772933737472,0.07604809,67091.0,67084.0,0.02334433]
[1772933737672,0.00148,67091.0,67085.0,0.02334433]
[1772933738333,0.00148,67092.0,67085.0,0.02334433]
[1772933739142,0.07452564,67091.0,67085.0,0.02334433]
[1772933740789,0.07452564,67091.0,67085.0,0.09787607]
[1772933740992,0.00148,67092.0,67085.0,0.09787607]
[1772933741578,0.00170001,67092.0,67085.0,0.09787607]
[1772933743866,0.00148,67092.0,67086.0,0.02306402]
[1772933745911,0.07452564,67091.0,67086.0,0.02306402]
[1772933746365,0.00172003,67090.0,67086.0,0.02306402]
[1772933746713,0.00172003,67090.0,67085.0,0.07453174]
[1772933747364,0.00172003,67090.0,67083.0,0.02306402]
[1772933747570,0.00172003,67090.0,67083.0,0.02310588]
[1772933750251,0.00172003,67090.0,67084.0,0.07453342]
[1772933750451,0.00172003,67090.0,67084.0,0.09759744]
[1772933752484,0.07624705,67090.0,67084.0,0.09759744]
[1772933753480,0.07624705,67090.0,67083.0,4.186e-05]
[1772933753660,0.01053393,67089.0,67076.0,0.07454193]
[1772933753902,0.01059972,67089.0,67076.0,0.07454193]
[1772933754073,0.06344693,67089.0,67076.0,0.07454193]
[1772933754930,0.07452897,67088.0,67076.0,0.07454193]
[1772933755915,0.07452897,67088.0,67077.0,0.02306402]
[1772933756819,0.00172003,67087.0,67078.0,0.07454008]
[1772933756968,0.00148,67086.0,67078.0,0.0976041]
[1772933759438,0.0745323,67085.0,67078.0,0.0978041]
[1772933759951,0.00022001,67090.0,67078.0,0.0978041]
[1772933759952,0.00148,67095.0,67079.0,0.07214868]
[1772933760246,0.00172003,67085.0,67082.0,0.02306402]
[1772933760447,0.07600029,67096.0,67084.0,0.02306402]
[1772933762140,0.07600029,67096.0,67086.0,0.02232224]
[1772933765156,0.07600029,67096.0,67085.0,0.0745323]
[1772933765700,0.07600029,67096.0,67085.0,0.09685454]
[1772933765860,0.07600029,67096.0,67085.0,0.0745323]
[1772933766060,0.07600029,67096.0,67086.0,0.02232224]
[1772933766483,0.07600029,67096.0,67084.0,0.07453337]
[1772933766662,0.0762203,67096.0,67084.0,0.07453337]
[1772933767179,0.0762203,67096.0,67083.0,0.07473391]
[1772933767180,0.0762203,67096.0,67083.0,0.07473417]
[1772933767996,0.0762203,67096.0,67084.0,0.02232224]
[1772933768313,0.00022001,67104.0,67084.0,0.02232224]
[1772933768314,0.00779861,67126.0,67110.0,0.1667174]
[1772933768486,0.04841114,67160.0,67155.0,0.752615]
[1772933768653,0.04841114,67160.0,67125.0,0.0004]
[1772933768654,0.04266114,67158.0,67151.0,0.17849084]
[1772933768880,0.04266114,67156.0,67152.0,0.03588585]
[1772933769091,0.08019982,67160.0,67153.0,0.03171397]
[1772933769285,0.00148,67155.0,67145.0,0.02241343]
[1772933769509,0.00148,67154.0,67145.0,0.02241343]
[1772933769912,0.00040188,67155.0,67145.0,0.02241343]
[1772933770113,0.00148,67154.0,67145.0,0.02241343]
[1772933770312,0.00040188,67155.0,67147.0,0.06708554]
[1772933770514,0.00148,67153.0,67142.0,0.02241343]
[1772933770711,0.00148,67153.0,67145.0,0.04467211]
[1772933770945,0.04266114,67172.0,67147.0,0.04467211]
[1772933771138,0.07591791,67171.0,67151.0,0.07445905]
[1772933771303,0.00148,67171.0,67153.0,0.02241343]
[1772933771504,0.04278166,67172.0,67154.0,0.02241343]
[1772933771760,0.00148,67171.0,67154.0,0.04467211]
[1772933771954,0.00148,67171.0,67155.0,0.02241343]
[1772933772157,0.00148,67170.0,67157.0,0.02241343]
[1772933772362,0.00148,67170.0,67159.0,0.04467211]
[1772933772536,0.00012052,67172.0,67160.0,0.02241343]
[1772933772742,0.00148,67169.0,67160.0,0.02241343]
[1772933772958,0.00148,67168.0,67160.0,0.02241343]
[1772933773317,0.00148,67167.0,67162.0,0.02241343]
[1772933773553,0.00148,67167.0,67162.0,0.0222447]
[1772933773911,0.00148,67167.0,67162.0,0.02207594]
[1772933774633,0.00148,67168.0,67162.0,0.02207594]
[1772933775275,0.00012052,67172.0,67162.0,0.02207594]
[1772933775473,0.00148,67168.0,67162.0,0.02207594]
[1772933775681,0.00012052,67172.0,67162.0,0.02173848]
[1772933775858,0.00148,67171.0,67162.0,0.02173848]
[1772933776185,0.00022001,67169.0,67163.0,0.09685918]
[1772933776338,0.00022001,67169.0,67164.0,0.02241343]
[1772933778489,0.00022001,67169.0,67164.0,0.02226343]
[1772933778693,0.00022001,67169.0,67151.0,0.07593901]
[1772933778694,0.00148,67168.0,67146.0,0.02241343]
[1772933778902,0.06511556,67167.0,67146.0,0.02241343]
[1772933779105,0.06511556,67167.0,67147.0,0.02241343]
[1772933779302,0.06511556,67167.0,67147.0,0.04467211]
[1772933779506,0.06511556,67167.0,67148.0,0.02241343]
[1772933779708,0.00148,67168.0,67150.0,0.02241343]
[1772933779895,0.00148,67168.0,67151.0,0.07445905]
[1772933780091,0.00148,67168.0,67152.0,0.02241343]
[1772933780738,0.00148,67168.0,67154.0,0.04467211]
[1772933780920,0.00152,67167.0,67155.0,0.02241343]
[1772933781442,0.00152,67166.0,67155.0,0.02241343]
[1772933781859,0.00152,67166.0,67155.0,0.04467211]
[1772933782002,0.00152,67170.0,67159.0,0.02241343]
[1772933782195,0.00152,67169.0,67162.0,0.02241343]
[1772933782392,0.00152,67169.0,67163.0,0.02241343]
[1772933783209,0.00152,67168.0,67163.0,0.02241343]
[1772933783843,0.00152,67168.0,67155.0,0.0744524]
[1772933783844,0.00174001,67168.0,67141.0,0.07447014]
[1772933784047,0.00174001,67168.0,67144.0,0.02241343]
[1772933784269,0.00174001,67168.0,67145.0,0.02241343]
[1772933784486,0.06511556,67166.0,67146.0,0.02241343]
[1772933784682,0.06511556,67164.0,67146.0,0.02241343]
[1772933785089,0.00152,67165.0,67146.0,0.02241343]
[1772933785291,0.00152,67165.0,67137.0,0.04467211]
[1772933785292,0.02245442,67164.0,67137.0,0.07447458]
[1772933785490,0.02245442,67160.0,67137.0,0.09688801]
[1772933785694,0.00152,67165.0,67137.0,0.09688801]
[1772933785695,0.02245442,67158.0,67137.0,0.09688801]
[1772933785897,0.04266114,67155.0,67137.0,0.09688801]
[1772933786050,0.06511556,67153.0,67137.0,0.07447458]
[1772933786249,0.00152,67152.0,67138.0,0.02241343]
[1772933786749,0.00152,67151.0,67138.0,0.02241343]
[1772933787951,0.00164046,67151.0,67138.0,0.02241343]
[1772933788171,0.00164046,67151.0,67139.0,0.07447236]
[1772933791309,0.06675602,67151.0,67139.0,0.07447236]
[1772933791521,0.00152,67150.0,67139.0,0.07447236]
[1772933792232,0.00152,67150.0,67139.0,0.09688579]
[1772933792964,0.00152,67150.0,67140.0,0.14702473]
[1772933793124,0.00152,67150.0,67141.0,0.147149]
[1772933793324,0.00152,67150.0,67142.0,0.147149]
[1772933793639,0.00152,67150.0,67139.0,0.09688579]
[1772933793839,0.00152,67150.0,67140.0,0.14714936]
[1772933794043,0.00152,67150.0,67141.0,0.14714936]
[1772933794265,0.00152,67150.0,67142.0,0.14714936]